Cogmind - Beta 11 @@@ ROGUE MODE // 2022.04.09 @ 23:41:30 Player: Red Box Result: Destroyed by G-47 Trooper with Particle Gun Performance ------------- Evolutions (0) 0 Regions Visited (2) 400 Robots Destroyed (27) 135 Value Destroyed (678) 678 Prototype IDs (3) 60 Alien Tech Used (0) 0 Bonus (0) 0 TOTAL SCORE: 1273 Bonus ------- None Cogmind --------- Core Integrity 0/250 Matter 300/300 Energy 263/265 System Corruption 0% Temperature Warm (164) Movement Rolling (120) Ox2 Location -10/Mines Parts ------- > --- POWER (1) -------- Improved Ion Engine > --- PROPULSION (2) --- Wheel Compact Wheel > --- UTILITY (2) ------ Improved Heat Sink High-capacity Storage Unit > --- WEAPON (2) ------- Beam Cannon Beam Cannon > --- INVENTORY (20) --- Improved Ion Engine Improved Ion Engine Compact Wheel Armored Wheel Armored Wheel Armored Wheel Armored Wheel High-capacity Storage Unit Large Battery (200) Experimental Sensor Array Targeting Computer Light Armor Plating Sensor Drone Bay (20/20) Beam Rifle Beam Cannon EMP Blaster EMP Blaster EMP Blaster EMP Blaster Hammer Peak State ------------ > --- POWER ------------ Improved Ion Engine > --- PROPULSION ------- Wheel Wheel > --- UTILITY ---------- High-capacity Storage Unit Sensor Drone Bay > --- WEAPON ----------- Beam Cannon Beam Cannon > --- INVENTORY -------- Improved Ion Engine Improved Ion Engine Compact Wheel Compact Wheel Armored Wheel Armored Wheel Armored Wheel Armored Wheel High-capacity Storage Unit Huge Storage Unit Large Battery High-capacity Matter Pod Experimental Sensor Array Beam Cannon Beam Cannon EMP Blaster EMP Blaster EMP Blaster EMP Blaster Hammer [Rating: 18] Favorites ----------- Power Ion Engine Engine Ion Engine Propulsion Wheel Leg Aluminum Leg Wheel Wheel Utility Improved Heat Sink Device Improved Heat Sink Storage High-capacity Storage Unit Weapon Beam Cannon Energy Gun Particle Gun Energy Cannon Beam Cannon Ballistic Gun Light Assault Rifle Impact Weapon Hammer Build | -11 -10 -10 ------- Run | Scr Mat Min Slots Evolved . | . . . Power . | . . . Propulsion . | . . . Utility . | . . . Weapon . | . . . Parts Attached 30 | 7 18 5 Power 2 | 1 1 . Engine 2 | 1 1 . Core . | . . . Reactor . | . . . Propulsion 9 | 2 5 2 Treads . | . . . Leg 2 | 2 . . Wheel 7 | . 5 2 Hover . | . . . Flight . | . . . Utility 8 | 2 4 2 Device 4 | 1 1 2 Storage 4 | 1 3 . Processor . | . . . Hackware . | . . . Protection . | . . . Artifact . | . . . Weapon 11 | 2 8 1 Energy Gun 1 | . 1 . Energy Cannon 7 | . 6 1 Ballistic Gun 2 | 2 . . Ballistic Cannon . | . . . Launcher . | . . . Special Weapon . | . . . Impact Weapon 1 | . 1 . Slashing Weapon . | . . . Piercing Weapon . | . . . Special Melee Weapon . | . . . Unidentified Prototypes 1 | . . 1 Parts Lost 4 | . 2 2 Power . | . . . Propulsion 2 | . 1 1 Utility 1 | . 1 . Weapon 1 | . . 1 Highest Loss Streak 2 | . 2 1 To Critical Strikes . | . . . Average Slot Usage (%) 98 | . 98 99 Engine 14 | . 14 14 Leg 4 | . 6 . Wheel 22 | . 20 27 Device 13 | . 14 13 Storage 14 | . 14 14 Energy Gun 2 | . 3 . Energy Cannon 20 | . 16 27 Ballistic Gun 1 | . 2 . Impact Weapon 3 | . 4 . Naked Turns . | . . . Heaviest Build 54 | 13 54 54 Greatest Support 26 | 20 20 26 Greatest Overweight (x) 5 | . 2 5 Average Overweight (x) 1 | . 1 2 Largest Inventory Capacity 20 | 8 20 20 Average Capacity 15 | 7 14 20 Most Carried 20 | 8 20 20 Average Carried 13 | 5 11 19 Final Capacity 20 | 8 20 20 Final Carried 20 | 8 20 20 Class Distribution -------------------- 97% | Mutant Dominant Class ---------------- Mutant | -10/Materials Mutant | -10/Mines Resources | -11 -10 -10 ----------- Run | Scr Mat Min Matter Collected 521 | 288 181 52 Remotely . | . . . Salvage Created 890 | 72 504 314 Parts 44 | 9 20 15 Haulers Intercepted 2 | . 2 . Recyclers Shooed . | . . . Parts Field Recycled . | . . . Retrieved Matter . | . . . Parts Self-Destructed . | . . . Prevented . | . . . Kills | -11 -10 -10 ------- Run | Scr Mat Min Combat Hostiles Destroyed 20 | . 9 11 Melee 4 | . 4 . Cannons 13 | . 3 10 Classes Destroyed 5 | 1 3 1 Tunneler 3 | 3 . . Hauler 2 | . 2 . Watcher 2 | . 2 . Swarmer 6 | . . 6 Grunt 14 | . 9 5 Best Kill Streak 3 | 1 2 3 Combat Bots Only 3 | . 2 3 Max Kills in Single Turn 1 | 1 1 1 Gunslinging . | . . . Exploded . | . . . Melee 1 | . 1 . Uniques/NPCs Destroyed . | . . . Combat | -11 -10 -10 -------- Run | Scr Mat Min Damage Taken 846 | . 442 404 Core 259 | . 159 100 Absorbed by Shields . | . . . Regen/Repaired (Parts) 32 | . 32 . Core Remaining (%) 100 | 100 . . Volleys Fired 67 | 9 27 31 Largest 2 | 2 2 2 Hottest 125 | 40 125 120 Shots Fired 126 | 18 47 61 Gun 36 | 18 18 . Cannon 90 | . 29 61 Launcher . | . . . Special . | . . . Kinetic 30 | 18 12 . Thermal 96 | . 35 61 Explosive . | . . . Electromagnetic . | . . . Robot Hit Streak 8 | 4 7 8 Robot Miss Streak 6 | 1 4 6 Penetration Max . | . . . Secondary Targets . | . . . Shots Hit Robots 91 | 12 48 31 Core Hits 30 | 6 10 14 Critical Kills 1 | . . 1 Critical Parts Destroyed 6 | . 6 . Critical Strikes 7 | . 6 1 Meltdown 1 | . . 1 Smash 6 | . 6 . Melee Attacks 23 | . 23 . Impact 23 | . 23 . Slashing . | . . . Piercing . | . . . Sneak Attacks 1 | . 1 . Combat Hostiles . | . . . Follow-up Attacks . | . . . Damage Inflicted 1569 | 90 890 589 Guns 197 | 90 107 . Cannons 937 | . 348 589 Explosions . | . . . Melee 435 | . 435 . Ramming . | . . . Kinetic 122 | 90 32 . Thermal 1012 | . 423 589 Explosive . | . . . Electromagnetic . | . . . Impact 435 | . 435 . Slashing . | . . . Piercing . | . . . Highest Corruption . | . . . Average Corruption . | . . . Corruption Purged . | . . . Corruption Blocked . | . . . Overload Shots . | . . . Overflow Damage 130 | . 130 . Projectiles 5 | . 5 . Explosions . | . . . Melee 125 | . 125 . Knockbacks . | . . . Impact . | . . . Kinetic . | . . . Secondary . | . . . Self-Inflicted Damage . | . . . Shots . | . . . Rammed . | . . . Targets Rammed . | . . . Kicked . | . . . Crushed . | . . . Highest Temperature 320 | . 320 155 Average Temperature 74 | . 98 48 Received Heat Transfer 372 | . 243 129 Effects 3 | . 3 . Interference 3 | . 3 . Siege Activations . | . . . Robots Corrupted . | . . . Combat Hostiles . | . . . Parts Fried 7 | . 7 . Impact Corruptions 7 | . 7 . Robots Melted 1 | . . 1 Combat Hostiles 1 | . . 1 Parts Melted 5 | . 1 4 Heat Transferred 2183 | . 925 1258 Parts Sabotaged . | . . . Parts Stolen . | . . . Parts Stripped . | . . . Power Chain Reactions . | . . . Missiles Intercepted . | . . . Alert | -11 -10 -10 ------- Run | Scr Mat Min Peak Influence 271 | 15 161 271 Initial 21 | . 9 21 Average 79 | 6 61 132 Maximum Alert Level 1 | . . 1 Low Security (%) 89 | 100 100 66 Level 1 10 | . . 33 Level 2 . | . . . Level 3 . | . . . Level 4 . | . . . Level 5 . | . . . High Security . | . . . Max Security . | . . . Squads Dispatched 3 | . 3 . Investigation 3 | . 3 . Extermination . | . . . Reinforcement . | . . . Assault . | . . . Garrison . | . . . Intercept . | . . . Searches Triggered . | . . . Construction Impeded . | . . . Haulers Reinforced . | . . . Active Scanning Responses . | . . . Cargo Convoy Interrupts . | . . . Stealth | -11 -10 -10 --------- Run | Scr Mat Min Distress Signals . | . . . Communications Jammed . | . . . Distress Signals . | . . . Times Spotted 33 | . 18 15 Peak Tracking Total 3 | . 3 3 Tactical Retreats 1 | . . 1 Traps | -11 -10 -10 ------- Run | Scr Mat Min Traps Triggered 3 | . 3 . Indirectly . | . . . Trap Hack Attempts . | . . . Triggered . | . . . Disarmed . | . . . Reprogrammed 6 | . 6 . Reused 2 | . 2 . Traps Extracted . | . . . Installed . | . . . Triggered 2 | . 2 . Machines | -11 -10 -10 ---------- Run | Scr Mat Min Machines Disabled 3 | . 2 1 Max in Single Turn 1 | . 1 1 Machines Sabotaged . | . . . Garrisons Compromised . | . . . Overloaded Fab Kills . | . . . Hacking | -11 -10 -10 --------- Run | Scr Mat Min Machines Accessed 9 | . 8 1 Terminals 6 | . 6 . Fabricators . | . . . Repair Stations 1 | . 1 . Recycling Units 1 | . 1 . Scanalyzers . | . . . Garrison Access . | . . . Total Hacks 23 | . 22 1 Successful 17 | . 16 1 Failed 6 | . 6 . Catastrophic . | . . . Database Lockouts . | . . . Manual 10 | . 10 . Terminals 17 | . 17 . Fabricators . | . . . Repair Stations 3 | . 3 . Recycling Units 2 | . 2 . Scanalyzers . | . . . Garrison Access . | . . . Terminal Hacks 9 | . 8 1 Prototype ID Bank 1 | . 1 . Open Door 1 | . . 1 Terminal Index 1 | . 1 . Unreport Threat 1 | . 1 . Locate Traps 1 | . 1 . Reprogram Traps 1 | . 1 . Security Status 1 | . 1 . Recall Investigation 1 | . 1 . Recall Reinforcements 1 | . 1 . Fabricator Hacks . | . . . Repair Station Hacks 2 | . 2 . Scan Component 1 | . 1 . Repair 1 | . 1 . Recycling Unit Hacks 1 | . 1 . Retrieve Components 1 | . 1 . Scanalyzer . | . . . Garrison Access Hacks . | . . . Unauthorized Hacks 5 | . 5 . Terminals 4 | . 4 . Track 2 | . 2 . Botnet 2 | . 2 . Fabricators . | . . . Repair Stations . | . . . Recycling Units 1 | . 1 . Reject 1 | . 1 . Scanalyzers . | . . . Garrison Access . | . . . Data Cores Recovered . | . . . Used . | . . . Hacking Detections 7 | . 7 . Full Trace Events 1 | . 1 . Feedback Events . | . . . Feedback Blocked . | . . . Robot Schematics Acquired . | . . . Robots Built . | . . . Authchips . | . . . Time . | . . . Total Robot Build Rating . | . . . Part Schematics Acquired . | . . . Parts Built . | . . . Authchips . | . . . Time . | . . . Total Part Build Rating . | . . . Parts Repaired 1 | . 1 . Time 13 | . 13 . Parts Recycled . | . . . Recycled Matter . | . . . Retrieved Matter . | . . . Retrieved Components 3 | . 3 . Parts Scanalyzed . | . . . Part Schematics Acquired . | . . . Parts Damaged . | . . . Bothacking | -11 -10 -10 ------------ Run | Scr Mat Min Used RIF Installer . | . . . Robots Hacked . | . . . Non-combat . | . . . Combat . | . . . Robot Hacks Applied . | . . . Relay Couplers Released . | . . . Fabnet Peak Effective % . | . . . Robots Rewired . | . . . Allies Hacked . | . . . Hacks Repelled . | . . . Allies | -11 -10 -10 -------- Run | Scr Mat Min Total Allies . | . . . Largest Group . | . . . Highest-Rated Group . | . . . Highest-Rated Ally . | . . . Total Orders . | . . . Ally Attacks . | . . . Total Damage . | . . . Kills . | . . . Allies Corrupted . | . . . Allies Melted . | . . . Intel | -11 -10 -10 ------- Run | Scr Mat Min Robot Analysis Total . | . . . Derelict Logs Recovered . | . . . Drone Launches . | . . . Drone Recoveries . | . . . Exploration | -11 -10 -10 ------------- Run | Scr Mat Min Turns Passed 2122 | 119 1358 645 Spaces Moved 1456 | 67 984 405 Core 4 | 4 . . Treads . | . . . Legs 277 | 63 214 . Wheels 1175 | . 770 405 Hover . | . . . Flight . | . . . Fastest Speed 50 | 50 80 110 Average Speed 108 | 115 105 115 Slowest Speed 155 | 120 120 155 Overloaded Moves . | . . . Propulsion Burnouts . | . . . Robots Hopped . | . . . Cave-ins Triggered . | . . . Exploration Rate (%) 60 | 5 96 80 Regions Visited 2 Branch Regions 1 Pre-discovered Areas . | . . . Known Exits Taken . | . . . Unknown Exits Taken 2 | 1 1 . Scrap Searched 1 | . . 1 Spaces Dug . | . . . Terrain Destroyed . | . . . Melee . | . . . Projectile . | . . . AOE . | . . . Terrain Rammed . | . . . Walls Destroyed . | . . . Machines Disabled . | . . . Actions | -11 -10 -10 --------- Run | Scr Mat Min Total 1835 | 90 1221 524 Wait 194 | . 123 71 Move 1454 | 66 983 405 Hop . | . . . Pick Up 45 | 8 31 6 Fast Attach 9 | 7 . 2 Attach 8 | . 6 2 Detach . | . . . Swap 13 | . 12 1 Drop 22 | . 16 6 Fire 67 | 9 27 31 Melee 23 | . 23 . Ram . | . . . Kick . | . . . Crush . | . . . Escape Stasis . | . . . Rewire . | . . . Trap . | . . . Miscellaneous . | . . . Route ------- -11/Scrapyard -10/Materials (discovered 3 exits: [*Mat x2] / *Min) -10/Mines (discovered 2 exits: [*Mat x2]) History --------- Turn | Location | Event 2 | -11/Scrapyard | Met Revision 17 5 | -11/Scrapyard | Discovered new exit (range 15) 120 | -11/Scrapyard | Entered Materials 310 | -10/Materials | Build established: Mutant 482 | -10/Materials | Discovered new exit (range 9) 651 | -10/Materials | Core integrity fell below 50% 797 | -10/Materials | Discovered new exit (range 11) 883 | -10/Materials | Discovered new exit (range 16) 1437 | -10/Materials | Repaired Beam Cannon 1478 | -10/Materials | Entered Mines 1480 | -10/Mines | Met a Derelict bent on vengeance 1488 | -10/Mines | Discovered new exit (range 9) 1634 | -10/Mines | Discovered new exit (range 5) 1716 | -10/Mines | Found a damaged Exp. Sensor Array with a note attached 1720 | -10/Mines | Found Prototype Device 1755 | -10/Mines | Found the Drone Emporium 1763 | -10/Mines | Found Prototype Device 1763 | -10/Mines | Identified Sensor Drone Bay 1838 | -10/Mines | Core integrity fell below 20% 1865 | -10/Mines | Joined a pair of Derelicts in attacking an 0b10 outpost 2123 | -10/Mines | Destroyed by G-47 Trooper with Particle Gun Last Messages --------------- 01866_ Found Med. Storage Unit. 01866_ Found 17 Matter. 01868_ Machine disabled. 01872_ Acquired Lgt. Armor Plating. 01873_ Dropped Hcp. Matter Pod. 01874_ JN-W41(g) suffers critical hit (Burn). 01876_ Y-45 Defender suffers critical hit (Burn). 01877_ Y-45 Defender heat spikes uncontrollably. 01877_ Y-45 Defender critical meltdown. 01878_ Acquired Beam Rifle. 01890_ Dropped Wheel. 01892_ Acquired 10 matter. 01895_ 03-102(g): "I guess it's a good idea to hang out here and mop up anything else that comes by." 01896_ Acquired Targeting Computer. 02103_ JN-W41(g) destroyed. 02107_ K-01 Serf collects debris. 02118_ Heat Sink melted. 02118_ G-34 Mercenary destroyed. 02119_ K-01 Serf collects debris. Map ----- +----------------------------------------------------+ | ????#" "#??????????## | | ????## ######??????# ############ | | ????### #### ##?????# #??????????##### ## | | ????# X # ####### ##?????????????# ## [ | | ???## # ##????????????# ####% | | ??## ##### ## #????????????# #??#% | | ??# ### ### ## #????????????# #??#[ | | ??# ## ##??###???????# #??#% | | ??## ## #??# ##??????# #??#= | | ???# ###### ## #??????# #??## | | ???## ## ##??## #??????? ????? | | ????###?### ###???# ### #??????? ???## | | ??????????# ####### ##??# #??????? ???# | | ??????????# ## %## ##????# #???????? ???# | | ?????###### # [ # ##?????## ##???????? ????? | | ?????# #!!! + #?###### ##???????? ????? | | ?????# ######! =!+%!### #???????? ????? | | ?????# #????#""=*#!%## #?????????????? | | ?????# #????##"%## #?????????????? | | ?????# #?????###### ##?????????????? | | ?????# #??????????# ##??????????????? | | ?????# #??????????## #???????????????? | | ?????# #????????##### ##??????????????? | | ?????# #????????# = k #???????????????? | | ?????# #????????# g%[ #????????????????? | | ?????# #????????# ### %!@### ##?????????????? ?? | | ?????# #????????#[#?# ###?####???????????????? # | | ????## ###??????#%#?# #???????????????????????? | | ???## ##?????#*#?# #????????????????????????? | | ???# #?????# #?# #??????????###???????????? | | ???# #####?# ### #????#### ??????????? | | ???# #?# #??? #?????????# | | ???## ##### ### ### "???????????## | | ????# ###### % % #?????????????????# | | ????# ### ###### * #?????????????????# | | ????# ## ##??## #?????????????????# | | ????# ## #???## ### #????????????????# | | ????# ##???####??# #???????????????? | | ????# ##?????????## #??????????????? | | ????###### #???????????# #??????????????? | | ?????????# #????????????# ##??????????????? | | ?????????## #?????????????###???????????????? | | ??????????# ##???????????????????????????????? | | ??????????# ####################???????????????# | | ??????????# #?# #???????????????# | | ??????????# #?# #????????????????# | | ??????????# #?# #????????????????# | | ??????????# ### """ """ """ #????????????????? | | ??????????# """ """ """ #????????????????? | | ??????????##### """ """ """ #????????????????? | +----------------------------------------------------+ Best States ------------- Heat Dissipation 39 Energy Generation 12 Energy Capacity 265 Matter Stores 300 Matter Capacity 300 Sight Range 16 Terrain Scan Range 16 Terrain Scan Density 10 Evasion (%) 55 Item Schematics ----------------- None Robot Schematics ------------------ None Fabricated ------------ Nothing Alien Tech Used ----------------- None Achievements -------------- None Challenges ------------ None Game ------ Seed LatentSlugInterpreter Manual? 0 Play Time 00:21:10 Cumulative 266.3 hours Start 2022.04.09 @ 23:10:01 End 2022.04.09 @ 23:41:30 Sessions 1 Manual Loads 0 Difficulty Rogue Special Mode None Game No. 229 Rogue 229 Adventurer 0 Explorer 0 Win Type - Total 0 Types 0/0/0/0/0/0/0/0/0 Lore% 51 Gallery% 58 Achievement% 42 Wizard Run 0 Options --------- ASCII 0 Keyboard 0 Movement Mouse Keybinds 0 Fullscreen 1 Font 16/SmallcapsGlow Map View 75x55 Tactical HUD 1 Map Filters NONE Filters NONE Steam 1 RUN: 1f00f403-47bc-4cfc-ba40-6ea8acd191eb